fUST/lending_fUST_20250916
["ID","MTS","AMOUNT","RATE_DAILY","PERIOD"]
[385769808,1758030659425,-480.0,0.00023013,3]
[385769810,1758030659434,-480.0,0.00023013,3]
[385769812,1758030659444,-480.0,0.00023013,3]
[385769814,1758030659453,-300.0,0.00023013,2]
[385769816,1758030659462,-1344.4,0.00023013,3]
[385769818,1758030659471,-890.7,0.00023013,3]
[385769820,1758030659480,-480.0,0.00023013,3]
[385769822,1758030659489,-3211.8,0.00023013,3]
[385769824,1758030659498,-480.0,0.00023013,3]
[385769826,1758030659508,-2880.53,0.00023013,3]
[385769828,1758030659517,-480.0,0.00023013,3]
[385769830,1758030659526,-480.0,0.00023013,3]
[385769832,1758030659535,-480.0,0.00023013,3]
[385769834,1758030659545,-480.0,0.00023013,3]
[385769836,1758030659554,-480.0,0.00023013,3]
[385769838,1758030659564,-1473.01,0.00023013,3]
[385769840,1758030659573,-480.0,0.00023013,3]
[385769842,1758030659587,-12165.76,0.00023013,3]
[385769844,1758030659595,-480.0,0.00023013,3]
[385769846,1758030659603,-480.0,0.00023013,3]
[385769848,1758030659611,-480.0,0.00023013,3]
[385769850,1758030659621,-480.0,0.00023013,3]
[385769852,1758030659630,-1705.22,0.00023013,3]
[385769854,1758030659639,-480.0,0.00023013,3]
[385769856,1758030659648,-480.0,0.00023013,3]
[385769858,1758030659657,-480.0,0.00023013,3]
[385769860,1758030659668,-480.0,0.00023013,3]
[385769862,1758030659684,-480.0,0.00023013,3]
[385769864,1758030659693,-480.0,0.00023013,3]
[385769866,1758030659703,-480.0,0.00023013,3]
[385769868,1758030659712,-480.0,0.00023013,3]
[385769870,1758030659721,-480.0,0.00023013,3]
[385769872,1758030659730,-480.0,0.00023013,3]
[385769874,1758030659740,-151.12,0.00023013,3]
[385769876,1758030659749,-480.0,0.00023013,3]
[385769878,1758030659758,-1156.04,0.00023013,3]
[385769880,1758030659767,-480.0,0.00023013,3]
[385769882,1758030659777,-480.0,0.00023013,3]
[385769884,1758030659786,-885.31,0.00023013,3]
[385769886,1758030659795,-480.0,0.00023013,3]
[385769888,1758030659804,-480.0,0.00023013,3]
[385769890,1758030659813,-480.0,0.00023013,3]
[385769892,1758030659823,-1262.43,0.00023013,3]
[385769894,1758030659834,-570.5,0.00023013,3]
[385769902,1758030659905,-994.13,0.00023013,3]
[385769904,1758030659917,-480.0,0.00023013,3]
[385769906,1758030659926,-480.0,0.00023013,3]
[385769908,1758030659936,-480.0,0.00023013,3]
[385769910,1758030659946,-807.99,0.00023013,3]
[385769912,1758030659956,-480.0,0.00023013,3]
[385769914,1758030659965,-480.0,0.00023013,3]
[385769916,1758030659978,-480.0,0.00023013,3]
[385769918,1758030659989,-480.0,0.00023013,3]
[385769920,1758030659999,-1497.24,0.00023013,3]
[385769922,1758030660008,-480.0,0.00023013,2]
[385769924,1758030660017,-480.0,0.00023013,3]
[385769926,1758030660026,-480.0,0.00023013,3]
[385769928,1758030660036,-5933.45,0.00023013,3]
[385769930,1758030660046,-480.0,0.00023013,3]
[385769932,1758030660055,-480.0,0.00023013,3]
[385769935,1758030660066,-480.0,0.00023013,3]
[385769937,1758030660076,-480.0,0.00023013,3]
[385769939,1758030660088,-480.0,0.00023013,3]
[385769941,1758030660098,-480.0,0.00023013,3]
[385769943,1758030660107,-260.25,0.00023058,2]
[385769945,1758030660118,-168.0,0.00023076,2]
[385769947,1758030660127,-168.0,0.00023087,2]
[385769949,1758030660136,-168.0,0.00023266,2]
[385769951,1758030660147,-500.0,0.00023268,2]
[385769953,1758030660157,-1500.0,0.00023268,2]
[385769955,1758030660167,-1500.0,0.00023268,2]
[385769957,1758030660176,-1000.0,0.00023268,2]
[385769959,1758030660186,-1500.0,0.00023268,2]
[385769961,1758030660196,-1500.0,0.00023268,2]
[385769963,1758030660206,-957.0,0.00023287,2]
[385769965,1758030660217,-160.02977056,0.00023287,2]
[385769967,1758030660228,-480.0,0.00023287,3]
[385769969,1758030660239,-480.0,0.00023287,3]
[385769971,1758030660250,-630.18,0.00023287,3]
[385769973,1758030660262,-480.0,0.00023287,3]
[385769975,1758030660274,-480.0,0.00023287,3]
[385769977,1758030660285,-330.44,0.00023287,3]
[385769979,1758030660297,-480.0,0.00023287,3]
[385769981,1758030660309,-480.0,0.00023287,3]
[385769983,1758030660320,-480.0,0.00023287,3]
[385769985,1758030660331,-480.0,0.00023287,3]
[385769987,1758030660358,-480.0,0.00023287,3]
[385769989,1758030660371,-480.0,0.00023287,3]
[385769991,1758030660382,-480.0,0.00023287,3]
[385769993,1758030660394,-480.0,0.00023287,3]
[385769995,1758030660406,-480.0,0.00023287,3]
[385769997,1758030660418,-678.09,0.00023287,3]
[385769999,1758030660429,-480.0,0.00023287,3]
[385770001,1758030660444,-480.0,0.00023287,3]
[385770003,1758030660456,-480.0,0.00023287,3]
[385770006,1758030660467,-480.0,0.00023287,3]
[385770008,1758030660479,-480.0,0.00023287,3]
[385770009,1758030660489,-480.0,0.00023287,3]
[385770012,1758030660501,-480.0,0.00023287,3]
[385770013,1758030660512,-1029.08,0.00023287,3]
[385770016,1758030660523,-480.0,0.00023287,3]
[385770017,1758030660534,-480.0,0.00023287,3]
[385770019,1758030660545,-480.0,0.00023287,3]
[385770021,1758030660558,-480.0,0.00023287,3]
[385770023,1758030660569,-480.0,0.00023287,3]
[385770025,1758030660580,-2458.14,0.00023287,3]
[385770027,1758030660599,-480.0,0.00023287,3]
[385770029,1758030660610,-480.0,0.00023287,3]
[385770032,1758030660621,-480.0,0.00023287,3]
[385770034,1758030660631,-480.0,0.00023287,3]
[385770035,1758030660642,-305.01623334,0.00023287,3]
[385770038,1758030660652,-932.94,0.00023287,2]
[385770039,1758030660663,-2790.16,0.00023287,3]
[385770041,1758030660673,-1044.2,0.00023287,3]
[385770043,1758030660683,-768.31,0.00023287,3]
[385770045,1758030660693,-480.0,0.00023287,3]
[385770047,1758030660702,-421.78,0.00023287,3]
[385770049,1758030660712,-1117.99,0.00023287,3]
[385770051,1758030660721,-524.05,0.00023287,3]
[385770053,1758030660731,-2396.2,0.00023287,3]
[385770055,1758030660741,-367.54,0.00023287,3]
[385770057,1758030660751,-480.0,0.00023287,3]
[385770059,1758030660761,-480.0,0.00023287,3]
[385770061,1758030660771,-480.0,0.00023287,3]
[385770063,1758030660781,-480.0,0.00023287,3]
[385770066,1758030660791,-480.0,0.00023287,3]
[385770068,1758030660802,-733.19,0.00023287,3]
[385770069,1758030660811,-745.47,0.00023287,3]
[385770071,1758030660821,-626.18256411,0.00023287,3]
[385770073,1758030660830,-480.0,0.00023287,3]
[385770076,1758030660846,-480.0,0.00023287,3]
[385770077,1758030660856,-480.0,0.00023287,3]
[385770079,1758030660865,-480.0,0.00023287,3]
[385770082,1758030660875,-480.0,0.00023287,3]
[385770084,1758030660884,-1343.81,0.00023287,3]
[385770086,1758030660895,-480.0,0.00023287,3]
[385770087,1758030660906,-480.0,0.00023287,3]
[385770089,1758030660915,-480.0,0.00023287,3]
[385770092,1758030660925,-300.0,0.00023287,2]
[385770093,1758030660934,-1344.4,0.00023287,3]
[385770095,1758030660944,-890.7,0.00023287,3]
[385770097,1758030660954,-409.48,0.00023287,3]
[385770099,1758030660963,-3211.8,0.00023287,3]
[385770101,1758030660972,-282.95090851,0.00023287,3]
[385770103,1758030660982,-2880.53,0.00023287,3]
[385770105,1758030660991,-480.0,0.00023287,3]
[385770107,1758030661000,-480.0,0.00023287,3]
[385770109,1758030661010,-480.0,0.00023287,3]
[385770111,1758030661019,-480.0,0.00023287,3]
[385770119,1758030661029,-1473.01,0.00023287,3]
[385770121,1758030661097,-204.02,0.00023287,3]
[385770123,1758030661106,-12165.76,0.00023287,3]
[385770125,1758030661116,-480.0,0.00023287,3]
[385770127,1758030661125,-480.0,0.00023287,3]
[385770129,1758030661135,-480.0,0.00023287,3]
[385770131,1758030661144,-480.0,0.00023287,3]
[385770133,1758030661153,-1705.22,0.00023287,3]
[385770135,1758030661163,-480.0,0.00023287,3]
[385770137,1758030661172,-480.0,0.00023287,3]
[385770139,1758030661181,-480.0,0.00023287,3]
[385770141,1758030661191,-480.0,0.00023287,3]
[385770144,1758030661200,-480.0,0.00023287,3]
[385770145,1758030661210,-480.0,0.00023287,3]
[385770147,1758030661219,-480.0,0.00023287,3]
[385770149,1758030661228,-480.0,0.00023287,3]
[385770151,1758030661237,-480.0,0.00023287,3]
[385770153,1758030661246,-480.0,0.00023287,3]
[385770155,1758030661255,-480.0,0.00023287,3]
[385770157,1758030661265,-1156.04,0.00023287,3]
[385770159,1758030661274,-480.0,0.00023287,3]
[385770161,1758030661283,-480.0,0.00023287,3]
[385770163,1758030661292,-885.31,0.00023287,3]
[385770165,1758030661301,-480.0,0.00023287,3]
[385770167,1758030661311,-480.0,0.00023287,3]
[385770169,1758030661320,-480.0,0.00023287,3]
[385770171,1758030661329,-1262.43,0.00023287,3]
[385770173,1758030661345,-570.5,0.00023287,3]
[385770175,1758030661354,-994.13,0.00023287,3]
[385770177,1758030661363,-480.0,0.00023287,3]
[385770179,1758030661372,-807.99,0.00023287,3]
[385770181,1758030661382,-163.71,0.00023287,3]
[385770183,1758030661391,-480.0,0.00023287,3]
[385770185,1758030661400,-480.0,0.00023287,3]
[385770187,1758030661409,-1497.24,0.00023287,3]
[385770189,1758030661419,-480.0,0.00023287,3]
[385770191,1758030661429,-480.0,0.00023287,3]
[385770193,1758030661438,-5933.45,0.00023287,3]
[385770195,1758030661447,-480.0,0.00023287,3]
[385770197,1758030661457,-480.0,0.00023287,3]
[385770199,1758030661467,-480.0,0.00023287,3]
[385770201,1758030661476,-480.0,0.00023287,3]
[385770203,1758030661485,-2000.0,0.00023316,2]
[385770205,1758030661495,-1289.83604946,0.00023316,2]
[385770207,1758030661504,-203.15056871,0.00023316,2]
[385770209,1758030661513,-2000.0,0.00023316,2]
[385770211,1758030661521,-1105.88314967,0.00023316,2]
[385770213,1758030661530,-420.0,0.00023452,2]
[385770215,1758030661538,-260.0,0.00023552,2]
[385770217,1758030661547,-957.0,0.00023561,2]
[385770219,1758030661556,-562.29,0.00023561,3]
[385770221,1758030661567,-480.0,0.00023561,3]
[385770223,1758030661577,-630.18,0.00023561,3]
[385770226,1758030661591,-480.0,0.00023561,3]
[385770228,1758030661601,-480.0,0.00023561,3]
[385770230,1758030661610,-480.0,0.00023561,3]
[385770231,1758030661619,-480.0,0.00023561,3]
[385770233,1758030661628,-480.0,0.00023561,3]
[385770236,1758030661637,-480.0,0.00023561,3]
[385770238,1758030661647,-480.0,0.00023561,3]
[385770240,1758030661657,-480.0,0.00023561,3]
[385770242,1758030661666,-480.0,0.00023561,3]
[385770244,1758030661676,-480.0,0.00023561,3]
[385770246,1758030661685,-678.09,0.00023561,3]
[385770247,1758030661695,-480.0,0.00023561,3]
[385770250,1758030661705,-480.0,0.00023561,3]
[385770252,1758030661714,-480.0,0.00023561,3]
[385770254,1758030661723,-480.0,0.00023561,3]
[385770255,1758030661732,-480.0,0.00023561,3]
[385770257,1758030661742,-480.0,0.00023561,3]
[385770259,1758030661751,-409.79,0.00023561,3]
[385770261,1758030661760,-1029.08,0.00023561,3]
[385770263,1758030661770,-480.0,0.00023561,3]
[385770265,1758030661779,-480.0,0.00023561,3]
[385770267,1758030661788,-480.0,0.00023561,3]
[385770269,1758030661798,-480.0,0.00023561,3]
[385770271,1758030661808,-480.0,0.00023561,3]
[385770273,1758030661817,-2458.14,0.00023561,3]
[385770275,1758030661827,-480.0,0.00023561,3]
[385770277,1758030661840,-480.0,0.00023561,3]
[385770279,1758030661849,-480.0,0.00023561,3]
[385770281,1758030661859,-480.0,0.00023561,3]
[385770283,1758030661868,-2790.16,0.00023561,3]
[385770285,1758030661878,-1044.2,0.00023561,3]
[385770287,1758030661888,-768.31,0.00023561,3]
[385770289,1758030661902,-480.0,0.00023561,3]
[385770291,1758030661912,-524.05,0.00023561,3]
[385770293,1758030661920,-1117.99,0.00023561,3]
[385770295,1758030661930,-2396.2,0.00023561,3]
[385770297,1758030661941,-480.0,0.00023561,3]
[385770299,1758030661951,-480.0,0.00023561,3]
[385770301,1758030661961,-480.0,0.00023561,3]
[385770303,1758030661971,-200.0,0.00023561,2]
[385770305,1758030661982,-480.0,0.00023561,3]
[385770307,1758030661992,-733.19,0.00023561,3]
[385770309,1758030662001,-745.47,0.00023561,3]
[385770311,1758030662011,-480.0,0.00023561,3]
[385770313,1758030662020,-480.0,0.00023561,3]
[385770321,1758030662094,-480.0,0.00023561,3]
[385770323,1758030662105,-480.0,0.00023561,3]
[385770325,1758030662116,-1343.81,0.00023561,3]
[385770327,1758030662127,-480.0,0.00023561,3]
[385770329,1758030662137,-480.0,0.00023561,3]
[385770332,1758030662147,-480.0,0.00023561,3]
[385770334,1758030662158,-300.0,0.00023561,2]
[385770336,1758030662171,-1344.4,0.00023561,3]
[385770338,1758030662180,-890.7,0.00023561,3]
[385770340,1758030662190,-3211.8,0.00023561,3]
[385770342,1758030662200,-2880.53,0.00023561,3]
[385770343,1758030662210,-480.0,0.00023561,3]
[385770344,1758030662219,-480.0,0.00023561,3]
[385770345,1758030662228,-480.0,0.00023561,3]
[385770346,1758030662237,-480.0,0.00023561,3]
[385770347,1758030662246,-1473.01,0.00023561,3]
[385770348,1758030662255,-12165.76,0.00023561,3]
[385770349,1758030662264,-480.0,0.00023561,3]
[385770350,1758030662274,-480.0,0.00023561,3]
[385770351,1758030662282,-480.0,0.00023561,3]
[385770352,1758030662292,-480.0,0.00023561,3]
[385770353,1758030662301,-1705.22,0.00023561,3]
[385770354,1758030662310,-480.0,0.00023561,3]
[385770355,1758030662319,-480.0,0.00023561,3]
[385770356,1758030662328,-480.0,0.00023561,3]
[385770357,1758030662343,-480.0,0.00023561,3]
[385770358,1758030662352,-480.0,0.00023561,3]
[385770359,1758030662362,-480.0,0.00023561,3]
[385770360,1758030662372,-480.0,0.00023561,3]
[385770361,1758030662381,-480.0,0.00023561,3]
[385770363,1758030662391,-480.0,0.00023561,3]
[385770365,1758030662401,-426.56,0.00023561,3]
[385770367,1758030662410,-480.0,0.00023561,3]
[385770369,1758030662420,-1156.04,0.00023561,3]
[385770371,1758030662430,-580.0,0.00023561,3]
[385770373,1758030662439,-480.0,0.00023561,3]
[385770375,1758030662449,-885.31,0.00023561,3]
[385770377,1758030662459,-368.22,0.00023561,3]
[385770379,1758030662469,-480.0,0.00023561,3]
[385770381,1758030662479,-480.0,0.00023561,3]
[385770383,1758030662489,-1262.43,0.00023561,3]
[385770385,1758030662499,-570.5,0.00023561,3]
[385770387,1758030662508,-994.13,0.00023561,3]
[385770389,1758030662517,-480.0,0.00023561,3]
[385770391,1758030662527,-807.99,0.00023561,3]
[385770394,1758030662545,-480.0,0.00023561,3]
[385770397,1758030662562,-1497.24,0.00023561,3]
[385770400,1758030662580,-480.0,0.00023561,3]
[385770403,1758030662602,-5933.45,0.00023561,3]
[385770406,1758030662621,-480.0,0.00023561,3]
[385770409,1758030662638,-480.0,0.00023561,3]
[385770412,1758030662655,-480.0,0.00023561,3]
[385770414,1758030662669,-480.0,0.00023561,3]
[385770417,1758030662688,-480.0,0.00023561,3]
[385770420,1758030662708,-821.25,0.000236,7]
[385770423,1758030662727,-334.07773287,0.00023647,2]
[385770426,1758030662744,-10559.50523856,0.00023735,2]
[385770429,1758030662760,-2000.0,0.00023816,2]
[385770431,1758030662777,-2000.0,0.00023816,2]
[385770434,1758030662789,-2000.0,0.00023816,2]
[385770436,1758030662804,-2000.0,0.00023816,2]
[385770439,1758030662820,-957.0,0.00023835,2]
[385770442,1758030662839,-173.75285733,0.00023835,3]
[385770444,1758030662854,-630.18,0.00023835,3]
[385770447,1758030662869,-240.11,0.00023835,3]
[385770449,1758030662882,-480.0,0.00023835,3]
[385770452,1758030662898,-480.0,0.00023835,3]
[385770455,1758030662913,-457.54,0.00023835,3]
[385770457,1758030662928,-251.31075223,0.00023835,3]
[385770460,1758030662943,-480.0,0.00023835,3]
[385770462,1758030662957,-480.0,0.00023835,3]
[385770465,1758030662972,-480.0,0.00023835,3]
[385770468,1758030662987,-480.0,0.00023835,3]
[385770470,1758030663002,-678.09,0.00023835,3]
[385770473,1758030663017,-462.01,0.00023835,3]
[385770475,1758030663031,-480.0,0.00023835,3]
[385770478,1758030663046,-471.92570027,0.00023835,3]
[385770480,1758030663062,-480.0,0.00023835,3]
[385770483,1758030663077,-346.43,0.00023835,3]
[385770485,1758030663098,-1029.08,0.00023835,3]
[385770488,1758030663114,-412.74991446,0.00023835,3]
[385770491,1758030663130,-480.0,0.00023835,3]
[385770493,1758030663147,-480.0,0.00023835,3]
[385770496,1758030663165,-480.0,0.00023835,3]
[385770498,1758030663182,-480.0,0.00023835,3]
[385770501,1758030663198,-2458.14,0.00023835,3]
[385770504,1758030663214,-480.0,0.00023835,3]
[385770506,1758030663231,-480.0,0.00023835,3]
[385770509,1758030663247,-480.0,0.00023835,3]
[385770520,1758030663351,-480.0,0.00023835,3]
[385770522,1758030663362,-2790.16,0.00023835,3]
[385770524,1758030663372,-1044.2,0.00023835,3]
[385770526,1758030663383,-768.31,0.00023835,3]
[385770528,1758030663393,-480.0,0.00023835,3]
[385770530,1758030663403,-524.05,0.00023835,3]
[385770532,1758030663413,-1117.99,0.00023835,3]
[385770534,1758030663423,-2396.2,0.00023835,3]
[385770536,1758030663433,-480.0,0.00023835,3]
[385770538,1758030663442,-480.0,0.00023835,3]
[385770540,1758030663452,-480.0,0.00023835,3]
[385770542,1758030663461,-266.15353006,0.00023835,3]
[385770544,1758030663471,-733.19,0.00023835,3]
[385770546,1758030663480,-745.47,0.00023835,3]
[385770548,1758030663490,-480.0,0.00023835,3]
[385770550,1758030663501,-480.0,0.00023835,3]
[385770552,1758030663511,-480.0,0.00023835,3]
[385770554,1758030663522,-205.97,0.00023835,3]
[385770556,1758030663532,-1343.81,0.00023835,3]
[385770558,1758030663543,-453.73,0.00023835,3]
[385770560,1758030663553,-480.0,0.00023835,3]
[385770562,1758030663563,-300.0,0.00023835,2]
[385770564,1758030663573,-1344.4,0.00023835,3]
[385770566,1758030663583,-890.7,0.00023835,3]
[385770568,1758030663595,-480.0,0.00023835,3]
[385770570,1758030663605,-3211.8,0.00023835,3]
[385770572,1758030663615,-2880.53,0.00023835,3]
[385770574,1758030663626,-480.0,0.00023835,3]
[385770576,1758030663636,-480.0,0.00023835,3]
[385770578,1758030663646,-593.6,0.00023835,3]
[385770580,1758030663656,-480.0,0.00023835,3]
[385770582,1758030663666,-1473.01,0.00023835,3]
[385770584,1758030663676,-12165.76,0.00023835,3]
[385770586,1758030663687,-480.0,0.00023835,3]
[385770588,1758030663697,-480.0,0.00023835,3]
[385770590,1758030663707,-480.0,0.00023835,3]
[385770592,1758030663716,-480.0,0.00023835,3]
[385770594,1758030663726,-1705.22,0.00023835,3]
[385770596,1758030663738,-480.0,0.00023835,3]
[385770598,1758030663748,-480.0,0.00023835,3]
[385770600,1758030663758,-480.0,0.00023835,3]
[385770602,1758030663767,-480.0,0.00023835,3]
[385770604,1758030663777,-480.0,0.00023835,3]
[385770606,1758030663786,-480.0,0.00023835,3]
[385770608,1758030663795,-480.0,0.00023835,3]
[385770610,1758030663805,-480.0,0.00023835,3]
[385770612,1758030663815,-480.0,0.00023835,3]
[385770614,1758030663824,-1156.04,0.00023835,3]
[385770616,1758030663837,-480.0,0.00023835,3]
[385770618,1758030663847,-885.31,0.00023835,3]
[385770620,1758030663857,-480.0,0.00023835,3]
[385770622,1758030663867,-480.0,0.00023835,3]
[385770624,1758030663877,-1262.43,0.00023835,3]
[385770626,1758030663886,-570.5,0.00023835,3]
[385770628,1758030663897,-994.13,0.00023835,3]
[385770630,1758030663907,-480.0,0.00023835,3]
[385770632,1758030663920,-807.99,0.00023835,3]
[385770634,1758030663929,-480.0,0.00023835,3]
[385770636,1758030663940,-1497.24,0.00023835,3]
[385770638,1758030663950,-480.0,0.00023835,3]
[385770640,1758030663959,-5933.45,0.00023835,3]
[385770642,1758030663969,-480.0,0.00023835,3]
[385770644,1758030663980,-299.55,0.00023835,3]
[385770646,1758030663992,-480.0,0.00023835,3]
[385770648,1758030664002,-480.0,0.00023835,3]
[385770650,1758030664012,-480.0,0.00023835,3]
[385770652,1758030664021,-2500.0,0.00023864,2]
[385770654,1758030664030,-2500.0,0.00023864,2]
[385770656,1758030664039,-800.0,0.0002391,2]
[385770658,1758030664048,-800.0,0.0002391,2]
[385770660,1758030664057,-233.29513139,0.00024,7]
[385770662,1758030664067,-44018.61739464,0.00024,7]
[385770664,1758030664077,-217.86301978,0.00024,7]
[385770666,1758030664091,-160.0,0.00024,7]
[385770668,1758030664102,-531.43424302,0.00024,7]
[385770670,1758030664111,-531.43424302,0.00024,7]
[385770672,1758030664121,-847.61663983,0.00024,7]
[385770674,1758030664131,-260.25,0.00024,2]
[385770676,1758030664140,-360.0,0.00024099,2]
[385770678,1758030664150,-957.0,0.00024109,2]
[385770680,1758030664159,-630.18,0.00024109,3]
[385770682,1758030664168,-480.0,0.00024109,3]
[385770684,1758030664177,-515.27,0.00024109,3]
[385770686,1758030664187,-480.0,0.00024109,3]
[385770688,1758030664196,-480.0,0.00024109,3]
[385770690,1758030664206,-480.0,0.00024109,3]
[385770692,1758030664216,-480.0,0.00024109,3]
[385770694,1758030664225,-678.09,0.00024109,3]
[385770696,1758030664235,-480.0,0.00024109,3]
[385770698,1758030664245,-480.0,0.00024109,3]
[385770700,1758030664255,-1029.08,0.00024109,3]
[385770703,1758030664265,-480.0,0.00024109,3]
[385770705,1758030664275,-480.0,0.00024109,3]
[385770707,1758030664285,-432.31,0.00024109,3]
[385770709,1758030664295,-154.75,0.00024109,3]
[385770710,1758030664305,-2458.14,0.00024109,3]
[385770713,1758030664315,-150.0,0.00024109,2]
[385770715,1758030664325,-480.0,0.00024109,3]
[385770717,1758030664337,-480.0,0.00024109,3]
[385770719,1758030664349,-480.0,0.00024109,3]
[385770721,1758030664359,-480.0,0.00024109,3]
[385770723,1758030664368,-2790.16,0.00024109,3]
[385770725,1758030664378,-1044.2,0.00024109,3]
[385770727,1758030664387,-768.31,0.00024109,3]
[385770729,1758030664397,-480.0,0.00024109,3]
[385770731,1758030664406,-524.05,0.00024109,3]
[385770733,1758030664415,-1117.99,0.00024109,3]
[385770741,1758030664488,-2396.2,0.00024109,3]
[385770743,1758030664498,-260.28,0.00024109,3]
[385770745,1758030664508,-480.0,0.00024109,3]
[385770747,1758030664517,-480.0,0.00024109,3]
[385770749,1758030664527,-733.19,0.00024109,3]
[385770751,1758030664536,-745.47,0.00024109,3]
[385770754,1758030664546,-480.0,0.00024109,3]
[385770756,1758030664556,-480.0,0.00024109,3]
[385770758,1758030664566,-517.57805037,0.00024109,3]
[385770760,1758030664575,-1343.81,0.00024109,3]
[385770761,1758030664591,-480.0,0.00024109,3]
[385770763,1758030664600,-300.0,0.00024109,2]
[385770765,1758030664610,-358.91618851,0.00024109,3]
[385770783,1758030664777,-249.993024,0.00021917,2]
[385770799,1758030664944,-5000.0,0.00021356,2]
[385770800,1758030664954,-189.43,0.00021907,10]
[385770801,1758030664963,-230.006976,0.00021917,2]
[385770802,1758030664972,-480.0,0.00021917,2]
[385770803,1758030664981,-480.0,0.00021917,2]
[385770804,1758030664990,-480.0,0.00021917,2]
[385770805,1758030665000,-150.0,0.0002215,2]
[385770806,1758030665009,-500.0,0.00023287,2]
[385770807,1758030665019,-985.48381149,0.00024109,3]
[385770808,1758030665029,-890.7,0.00024109,3]
[385770809,1758030665038,-480.0,0.00024109,3]
[385770810,1758030665048,-3211.8,0.00024109,3]
[385770811,1758030665057,-2880.53,0.00024109,3]
[385770812,1758030665066,-480.0,0.00024109,3]
[385770813,1758030665075,-480.0,0.00024109,3]
[385770814,1758030665088,-480.0,0.00024109,3]
[385770815,1758030665098,-1473.01,0.00024109,3]
[385770817,1758030665107,-12165.76,0.00024109,3]
[385770819,1758030665117,-480.0,0.00024109,3]
[385770821,1758030665126,-480.0,0.00024109,3]
[385770823,1758030665135,-480.0,0.00024109,3]
[385770825,1758030665145,-560.4,0.00024109,3]
[385770827,1758030665154,-1705.22,0.00024109,3]
[385770829,1758030665162,-549.13,0.00024109,3]
[385770830,1758030665172,-480.0,0.00024109,3]
[385770832,1758030665181,-480.0,0.00024109,3]
[385770834,1758030665190,-480.0,0.00024109,3]
[385770837,1758030665200,-480.0,0.00024109,3]
[385770839,1758030665209,-480.0,0.00024109,3]
[385770841,1758030665218,-480.0,0.00024109,3]
[385770843,1758030665228,-480.0,0.00024109,3]
[385770844,1758030665237,-1156.04,0.00024109,3]
[385770846,1758030665247,-480.0,0.00024109,3]
[385770849,1758030665256,-480.0,0.00024109,3]
[385770851,1758030665265,-885.31,0.00024109,3]
[385770853,1758030665275,-480.0,0.00024109,3]
[385770855,1758030665284,-480.0,0.00024109,3]
[385770856,1758030665293,-1262.43,0.00024109,3]
[385770859,1758030665303,-570.5,0.00024109,3]
[385770860,1758030665313,-994.13,0.00024109,3]
[385770862,1758030665322,-480.0,0.00024109,3]
[385770865,1758030665340,-807.99,0.00024109,3]
[385770867,1758030665350,-480.0,0.00024109,3]